bitfinex/quotes_BTCUSD_20251201
["timestamp","ask_amount","ask_price","bid_price","bid_amount"]
[1764556761147,0.07,86695.0,86694.0,0.014892]
[1764556761553,0.07748,86695.0,86694.0,0.076872]
[1764556761753,0.07748,86695.0,86694.0,0.168882]
[1764556761956,0.07,86695.0,86694.0,0.168882]
[1764556762423,0.072,86695.0,86694.0,0.169882]
[1764556762624,0.072,86695.0,86694.0,0.18823418]
[1764556762900,0.072,86695.0,86694.0,0.169882]
[1764556763640,0.073,86695.0,86694.0,0.169882]
[1764556764936,0.003,86695.0,86694.0,0.169882]
[1764556765949,0.05212291,86729.0,86694.0,0.169882]
[1764556765950,0.01833342,86723.0,86714.0,0.01153216]
[1764556766155,0.0115295,86734.0,86728.0,0.0115303]
[1764556766156,0.0304492,86733.0,86728.0,0.0115303]
[1764556766303,0.0304492,86733.0,86725.0,0.0115307]
[1764556766304,0.00748,86727.0,86725.0,0.0115307]
[1764556766511,0.00011866,86733.0,86732.0,0.0625]
[1764556766512,0.00759866,86733.0,86732.0,0.0625]
[1764556766744,0.00011866,86733.0,86732.0,0.10596464]
[1764556766991,0.01152565,86763.0,86732.0,0.10596464]
[1764556766992,0.01833342,86750.0,86743.0,0.0115283]
[1764556767165,0.00748,86751.0,86745.0,0.0625]
[1764556767386,0.00748,86751.0,86736.0,0.53861203]
[1764556767387,0.01139203,86743.0,86742.0,0.04649]
[1764556767547,0.01139203,86755.0,86750.0,0.0625]
[1764556767748,0.02434041,86760.0,86757.0,0.0625]
[1764556767749,0.01833342,86760.0,86757.0,0.0625]
[1764556767955,0.00011861,86760.0,86759.0,0.0625]
[1764556768157,0.00011861,86760.0,86759.0,0.15792]
[1764556768158,0.00759861,86760.0,86759.0,0.15792]
[1764556768360,0.00759861,86760.0,86759.0,0.015792]
[1764556768578,0.00759861,86760.0,86753.0,0.09542]
[1764556768579,0.00259861,86760.0,86753.0,0.09542]
[1764556768780,0.01152644,86757.0,86743.0,0.01534392]
[1764556768980,0.01139203,86748.0,86742.0,0.04649]
[1764556769279,0.01152697,86753.0,86742.0,0.04649]
[1764556769280,0.01152711,86752.0,86743.0,0.09542]
[1764556769490,0.01152697,86753.0,86743.0,0.09542]
[1764556769491,0.01152697,86753.0,86747.0,0.0625]
[1764556769693,0.01833342,86756.0,86747.0,0.0625]
[1764556769895,0.01139203,86753.0,86752.0,0.0625]
[1764556770315,0.2420633,86755.0,86752.0,0.0625]
[1764556770316,0.01139203,86755.0,86752.0,0.15792]
[1764556770530,0.23050647,86767.0,86752.0,0.15792]
[1764556770531,0.02434041,86760.0,86754.0,0.0625]
[1764556770752,0.00748,86755.0,86753.0,0.09542]
[1764556770941,0.03586665,86768.0,86753.0,0.09542]
[1764556770942,0.02434167,86768.0,86767.0,0.10899]
[1764556771149,0.02434167,86768.0,86767.0,0.124538]
[1764556771150,0.00748,86768.0,86767.0,0.124538]
[1764556771354,0.00748,86768.0,86767.0,0.219958]
[1764556771550,0.00748,86768.0,86767.0,0.124538]
[1764556771711,0.00748,86768.0,86767.0,0.219958]
[1764556772115,0.00748,86768.0,86767.0,0.124538]
[1764556772344,0.00748,86768.0,86767.0,0.04649]
[1764556772546,0.01887203,86768.0,86767.0,0.04649]
[1764556772718,0.01987203,86768.0,86767.0,0.04849]
[1764556772920,0.01987203,86768.0,86767.0,0.002]
[1764556773120,0.03820545,86768.0,86767.0,0.002]
[1764556773328,0.06351907,86768.0,86767.0,0.002]
[1764556773744,0.02781342,86768.0,86767.0,0.002]
[1764556773971,0.02087203,86768.0,86767.0,0.002]
[1764556774692,0.02087203,86768.0,86767.0,0.15992]
[1764556774922,0.02087203,86768.0,86767.0,0.180561]
[1764556775134,0.00948,86768.0,86767.0,0.180561]
[1764556775275,0.02087203,86768.0,86767.0,0.180561]
[1764556776044,0.02087203,86768.0,86767.0,0.002]
[1764556776045,0.02781342,86768.0,86767.0,0.002]
[1764556776255,0.02087203,86768.0,86767.0,0.002]
[1764556779264,0.03325203,86768.0,86767.0,0.002]
[1764556779462,0.38057115,86768.0,86767.0,0.002]
[1764556779824,0.38057115,86768.0,86767.0,0.0645]
[1764556779825,0.02631912,86768.0,86767.0,0.0645]
[1764556780025,0.02631912,86768.0,86767.0,0.085141]
[1764556780026,0.01983203,86768.0,86767.0,0.085141]
[1764556780430,0.001,86768.0,86767.0,0.180561]
[1764556780630,0.00844,86768.0,86767.0,0.180561]
[1764556780856,0.001,86768.0,86767.0,0.180561]
[1764556781055,0.00844,86768.0,86767.0,0.178561]
[1764556781259,0.00744,86768.0,86767.0,0.178561]
[1764556781459,0.00844,86768.0,86767.0,0.179561]
[1764556781665,0.00844,86768.0,86753.0,0.01152697]
[1764556781666,0.03816545,86768.0,86740.0,0.53861203]
[1764556781902,0.01152711,86752.0,86742.0,0.04660861]
[1764556782049,0.01152764,86748.0,86742.0,0.04660861]
[1764556782432,0.01152737,86750.0,86742.0,0.04660861]
[1764556782607,0.01139203,86746.0,86742.0,0.04660861]
[1764556782780,0.00744,86751.0,86749.0,0.0625]
[1764556782980,0.00744,86751.0,86750.0,0.0625]
[1764556783179,0.23798489,86751.0,86750.0,0.0625]
[1764556783361,0.24937692,86751.0,86750.0,0.0625]
[1764556783569,0.24937692,86751.0,86750.0,0.078292]
[1764556783801,0.01883203,86751.0,86750.0,0.078292]
[1764556784161,0.01883203,86751.0,86750.0,0.173712]
[1764556784591,0.01139203,86751.0,86750.0,0.173712]
[1764556784952,0.06088664,86779.0,86750.0,0.173712]
[1764556784953,0.00744,86752.0,86750.0,0.173712]
[1764556785153,0.00744,86752.0,86742.0,0.05813705]
[1764556785154,0.01883203,86752.0,86751.0,0.1127912]
[1764556785272,0.00744,86752.0,86751.0,0.1752912]
[1764556785470,0.0129,86769.0,86752.0,0.24206909]
[1764556785471,0.01833342,86765.0,86752.0,0.24206909]
[1764556785668,0.01152485,86769.0,86752.0,0.09542]
[1764556785669,0.00744,86764.0,86752.0,0.09542]
[1764556785873,0.00744,86764.0,86753.0,0.09542]
[1764556786091,0.01883203,86764.0,86763.0,0.10899]
[1764556786702,0.01983203,86764.0,86763.0,0.20441]
[1764556788200,0.01883203,86764.0,86763.0,0.20441]
[1764556788399,0.01983203,86764.0,86763.0,0.20441]
[1764556788604,0.02083203,86764.0,86763.0,0.20741]
[1764556788839,0.02083203,86764.0,86763.0,0.228151]
[1764556788840,0.01983203,86764.0,86763.0,0.228151]
[1764556789069,0.02083203,86764.0,86763.0,0.228151]
[1764556789467,0.02083203,86764.0,86763.0,0.11199]
[1764556789625,0.02083203,86764.0,86763.0,0.04949]
[1764556789826,0.02083203,86764.0,86763.0,0.10963]
[1764556790028,0.03590531,86768.0,86763.0,0.10963]
[1764556790029,0.0303887,86775.0,86770.0,0.23049182]
[1764556790230,0.0303887,86775.0,86765.0,0.06014]
[1764556790231,0.03052176,86786.0,86774.0,0.06014]
[1764556790479,0.04059275,86792.0,86771.0,0.0532093]
[1764556790480,0.00744,86785.0,86771.0,0.0532093]
[1764556790684,0.0129,86772.0,86763.0,0.04949]
[1764556790852,0.0129,86772.0,86745.0,0.042019]
[1764556790853,0.01152472,86770.0,86757.0,0.04817]
[1764556791053,0.01139203,86758.0,86757.0,0.04817]
[1764556791299,0.24338989,86772.0,86757.0,0.04817]
[1764556791300,0.00744,86759.0,86757.0,0.04817]
[1764556791459,0.00744,86759.0,86758.0,0.15915]
[1764556792549,0.01139203,86764.0,86761.0,0.01152591]
[1764556792751,0.00744,86763.0,86761.0,0.23051832]
[1764556792950,0.00744,86763.0,86760.0,0.01152604]
[1764556792951,0.01139203,86779.0,86771.0,0.01152458]
[1764556793178,0.00744,86778.0,86775.0,0.01152405]
[1764556793348,0.00744,86778.0,86772.0,0.09901]
[1764556793579,0.00744,86777.0,86772.0,0.11053445]
[1764556793809,0.00744,86777.0,86773.0,0.05945814]
[1764556794041,0.00744,86777.0,86776.0,0.06014]
[1764556794615,0.00744,86777.0,86772.0,0.09901]
[1764556794616,0.23048644,86773.0,86772.0,0.001]
[1764556794816,0.01152299,86783.0,86772.0,0.001]
[1764556794817,0.04083989,86786.0,86782.0,0.02774]
[1764556795072,0.04083989,86786.0,86783.0,0.007591]
[1764556795073,0.00039529,86786.0,86783.0,0.007591]
[1764556796007,0.01139202,86784.0,86783.0,0.007591]
[1764556798155,0.01239202,86784.0,86783.0,0.009591]
[1764556798360,0.01339202,86784.0,86783.0,0.009591]
[1764556798591,0.01339202,86784.0,86783.0,0.002]
[1764556798821,0.36552358,86784.0,86783.0,0.002]
[1764556800055,0.01139202,86761.0,86759.0,0.01152618]
[1764556800255,0.01139202,86761.0,86758.0,0.01152631]
[1764556800559,0.00744,86762.0,86760.0,0.29066097]
[1764556800796,0.00744,86762.0,86761.0,0.12812993]
[1764556801002,0.01139202,86775.0,86768.0,0.01152498]
[1764556801214,0.003,86784.0,86783.0,0.06014]
[1764556801215,0.002,86784.0,86783.0,0.06014]
[1764556801479,0.002,86784.0,86783.0,0.15915]
[1764556801667,0.00744,86805.0,86784.0,0.23045722]
[1764556801805,0.00360349,86804.0,86785.0,0.06014]
[1764556801989,0.02813874,86804.0,86785.0,0.1708]
[1764556802189,0.00744,86805.0,86785.0,0.26814812]
[1764556802988,0.02453525,86816.0,86785.0,0.27954014]
[1764556803219,0.01151768,86823.0,86785.0,0.27954014]
[1764556803220,0.00744,86808.0,86785.0,0.39324305]
[1764556803420,0.00744,86808.0,86785.0,0.38185103]
[1764556803649,0.00744,86808.0,86785.0,0.38929103]
[1764556804128,0.00139529,86786.0,86785.0,0.39829103]
[1764556804368,0.00039529,86786.0,86785.0,0.45181402]
[1764556804559,0.00744,86813.0,86785.0,0.45181402]
[1764556804560,0.02453525,86821.0,86817.0,0.01151848]
[1764556804776,0.02445458,86833.0,86828.0,0.01151702]
[1764556804975,0.00119916,86838.0,86829.0,0.03685596]
[1764556805198,0.00011852,86838.0,86835.0,0.01151609]
[1764556805405,0.00011852,86838.0,86833.0,0.2303204]
[1764556805406,0.02445458,86856.0,86837.0,0.06014]
[1764556805522,0.00360192,86855.0,86844.0,0.06014]
[1764556805724,0.0488,86864.0,86847.0,0.0115145]
[1764556805725,0.06019202,86864.0,86847.0,0.0115145]
[1764556805929,0.00360131,86863.0,86850.0,0.0115141]
[1764556806133,0.01139202,86864.0,86852.0,0.01151383]
[1764556806730,0.24174288,86870.0,86855.0,0.01151344]
[1764556806731,0.01151171,86868.0,86855.0,0.01151344]
[1764556806918,0.01151171,86868.0,86856.0,0.1105233]
[1764556807135,0.01151145,86870.0,86859.0,0.06014]
[1764556807343,0.00744,86871.0,86859.0,0.06014]
[1764556807496,0.00744,86871.0,86859.0,0.15915]
[1764556807726,0.0004,86880.0,86859.0,0.15915]
[1764556808094,0.0004,86880.0,86879.0,0.23020522]
[1764556808406,0.00079514,86880.0,86879.0,0.43769882]
[1764556809452,0.00079514,86880.0,86879.0,0.43559673]
[1764556810216,0.00079514,86880.0,86879.0,0.44303673]
[1764556810522,0.00179514,86880.0,86879.0,0.45103673]
[1764556810846,0.00079514,86880.0,86879.0,0.44303673]
[1764556811455,0.00079514,86880.0,86879.0,0.45003673]
[1764556811456,0.00179514,86880.0,86879.0,0.45003673]
[1764556811902,0.00179514,86880.0,86879.0,0.51255972]
[1764556812075,0.00179514,86880.0,86879.0,0.52395174]
[1764556812286,0.0115043,86924.0,86879.0,0.52395174]
[1764556812287,0.0488,86930.0,86917.0,0.01150522]
[1764556812492,0.00051851,86920.0,86919.0,0.27770928]
[1764556812771,0.00051851,86920.0,86919.0,0.39093174]
[1764556812946,0.00051851,86920.0,86919.0,0.25984246]
[1764556813163,0.00051851,86920.0,86919.0,0.35719058]
[1764556813595,0.00251851,86920.0,86919.0,0.3685826]
[1764556813823,0.00051851,86920.0,86919.0,0.43110559]
[1764556814057,0.0004,86940.0,86931.0,0.23006752]
[1764556814260,0.0004,86940.0,86931.0,0.34596274]
[1764556814452,0.0004,86940.0,86931.0,0.44497274]
[1764556815102,0.0004,86940.0,86931.0,0.20746522]
[1764556815309,0.0004,86940.0,86939.0,0.23004635]
[1764556815529,0.0004,86940.0,86939.0,0.06014]
[1764556815771,0.0004,86940.0,86939.0,0.15915]
[1764556816125,0.0004,86940.0,86939.0,0.06014]
[1764556816334,0.0004,86940.0,86939.0,0.066154]
[1764556816533,0.0004,86940.0,86939.0,0.165164]
[1764556817175,0.0014,86940.0,86939.0,0.168164]
[1764556817385,0.0014,86940.0,86930.0,0.02891]
[1764556817519,0.01150377,86928.0,86922.0,0.02881]
[1764556817720,0.01150364,86929.0,86922.0,0.02881]
[1764556817922,0.01150456,86922.0,86919.0,0.04761]
[1764556818178,0.04838,86976.0,86939.0,0.06023]
[1764556818343,0.01149782,86973.0,86942.0,0.06023]
[1764556818563,0.00744,86982.0,86942.0,0.06023]
[1764556818564,4e-06,86943.0,86942.0,0.06023]
[1764556818761,0.011499,86964.0,86963.0,0.01149914]
[1764556819111,0.01255607,86964.0,86963.0,0.01149914]
[1764556819311,0.0114957,86989.0,86968.0,0.01149848]
[1764556819312,0.00119916,86989.0,86968.0,0.01149848]
[1764556819463,0.00131755,86989.0,86974.0,0.06023]
[1764556819672,0.01281325,86989.0,86974.0,0.06023]
[1764556819872,0.01139203,86978.0,86969.0,0.02906326]
[1764556820099,0.01139203,86978.0,86970.0,0.0156849]
[1764556820599,0.01149636,86984.0,86970.0,0.0156849]
[1764556820600,0.01149689,86980.0,86970.0,0.0156849]
[1764556820782,0.09201,86981.0,86970.0,0.0156849]
[1764556820783,0.00011839,86989.0,86977.0,0.01149729]
[1764556820905,0.00111839,86989.0,86978.0,0.01149716]
[1764556821109,0.00111839,86989.0,86979.0,0.01149702]
[1764556821408,0.00111839,86989.0,86981.0,0.01149676]
[1764556821621,0.00111839,86989.0,86988.0,0.06023]
[1764556821821,0.00111839,86989.0,86988.0,0.06767]
[1764556822018,0.00111839,86989.0,86988.0,0.16692]
[1764556822212,0.00111839,86989.0,86988.0,0.17831202]
[1764556822894,0.00011839,86989.0,86988.0,0.16692]
[1764556823079,0.00111839,86989.0,86988.0,0.27014627]
[1764556823299,0.00111839,86989.0,86988.0,0.33266926]
[1764556823442,0.00011839,86989.0,86988.0,0.32866926]
[1764556823781,0.00011839,86989.0,86988.0,0.26614627]
[1764556823959,0.00111839,86989.0,86988.0,0.27314627]
[1764556824384,0.00111839,86989.0,86988.0,0.10622627]
[1764556824580,0.00111839,86989.0,86988.0,0.007]
[1764556824991,0.00011839,86989.0,86988.0,0.15476]
[1764556825313,0.00090648,86989.0,86988.0,0.1622]
[1764556825469,0.00190648,86989.0,86988.0,0.1682]
[1764556825655,0.00190648,86989.0,86988.0,0.26105778]
[1764556825866,0.00090648,86989.0,86988.0,0.25505778]
[1764556826066,0.00090648,86989.0,86988.0,0.15429778]
[1764556826322,0.00190648,86989.0,86988.0,0.09985778]
[1764556826540,0.00190648,86989.0,86988.0,0.007]
[1764556826756,0.13835648,86989.0,86988.0,0.007]
[1764556826922,0.14974851,86989.0,86988.0,0.007]
[1764556827118,0.01139203,86975.0,86974.0,0.228332]
[1764556827574,0.01149689,86980.0,86974.0,0.228332]
[1764556827575,0.00011839,86989.0,86974.0,0.289772]
[1764556827735,0.00011839,86989.0,86988.0,0.04698]
[1764556827961,0.00011839,86989.0,86973.0,0.04698]
[1764556827962,0.01149623,86985.0,86973.0,0.04698]
[1764556828152,0.01149583,86988.0,86984.0,0.06144]
[1764556828369,0.00111839,86989.0,86986.0,0.0114961]
[1764556828593,0.00111839,86989.0,86980.0,0.01149689]
[1764556828594,0.00211839,86989.0,86988.0,0.006]
[1764556828737,0.01251042,86989.0,86975.0,0.0275312]
[1764556828939,0.01151042,86989.0,86983.0,0.01149649]
[1764556829140,0.01151042,86989.0,86986.0,0.24141675]
[1764556829361,0.01251042,86989.0,86982.0,0.2414279]
[1764556829567,0.00111839,86989.0,86986.0,0.0114961]
[1764556829922,0.00011839,86989.0,86988.0,0.29135677]
[1764556830245,0.00111839,86989.0,86988.0,0.38467677]
[1764556830746,0.00011839,86989.0,86988.0,0.38467677]
[1764556831390,0.00011839,86989.0,86988.0,0.77019976]
[1764556831594,0.00011839,86989.0,86988.0,0.86770518]
[1764556831815,0.00111839,86989.0,86988.0,0.86770518]
[1764556832226,0.00011839,86989.0,86988.0,0.86770518]
[1764556832688,0.00011839,86989.0,86988.0,0.8790972]
[1764556832962,0.00190648,86989.0,86988.0,0.8830972]
[1764556833185,0.00090648,86989.0,86988.0,0.8790972]
[1764556833582,0.00190648,86989.0,86988.0,0.8870972]
[1764556833973,0.00190648,86989.0,86988.0,0.38942219]
[1764556834632,0.00190648,86989.0,86988.0,0.48274219]
[1764556834759,0.00090648,86989.0,86988.0,0.47474219]
[1764556834960,0.00190648,86989.0,86988.0,0.48374219]
[1764556835367,0.00090648,86989.0,86988.0,0.38142219]
[1764556835579,0.00090648,86989.0,86972.0,0.22995651]
[1764556835974,0.01151042,86989.0,86979.0,0.01149702]
[1764556836144,0.01161409,86989.0,86979.0,0.01149702]
[1764556836348,0.01149623,86985.0,86977.0,0.09734812]
[1764556836563,0.0114961,86986.0,86973.0,0.05847782]
[1764556836711,0.02288852,86983.0,86973.0,0.05847782]
[1764556836910,0.01149689,86980.0,86975.0,0.05282658]
[1764556837121,0.01139203,86976.0,86975.0,0.05282658]
[1764556837325,0.01139203,86975.0,86967.0,0.01149861]
[1764556837501,0.01139203,86975.0,86962.0,0.04222927]
[1764556837502,0.01139203,86975.0,86969.0,0.01149834]
[1764556837699,0.01139203,86975.0,86971.0,0.01149808]
[1764556837944,0.01139203,86975.0,86970.0,0.01149821]
[1764556838150,0.01139203,86979.0,86971.0,0.01149808]
[1764556838501,0.001,86975.0,86974.0,0.232332]
[1764556838920,0.001,86975.0,86974.0,0.387092]
[1764556839126,0.01139203,86999.0,86990.0,0.00999999]
[1764556839493,0.01139203,86999.0,86990.0,0.02149556]
[1764556839494,0.03419,86998.0,86990.0,0.02149556]
[1764556839500,0.01139203,87006.0,87003.0,0.01149385]
[1764556839690,0.01139203,87013.0,87005.0,0.01149359]
[1764556840023,0.04568187,87018.0,87008.0,0.01149319]
[1764556840239,0.04568187,87018.0,87005.0,0.24136466]
[1764556840240,0.011492,87017.0,87005.0,0.24136466]
[1764556840446,0.011492,87017.0,87004.0,0.01529029]
[1764556840447,0.02288443,87014.0,87004.0,0.01529029]
[1764556840646,0.002,87006.0,87005.0,0.0418587]
[1764556841070,0.006,87006.0,87005.0,0.0418587]
[1764556841465,0.00332373,87006.0,87005.0,0.0418587]
[1764556841706,0.00332373,87006.0,87005.0,0.0438587]
[1764556841877,0.00132373,87006.0,87005.0,0.0438587]
[1764556842087,0.00132373,87006.0,87005.0,0.0418587]
[1764556842293,0.01139203,87005.0,87003.0,0.00011839]
[1764556842504,0.00232373,87006.0,87003.0,0.00011839]
[1764556842505,0.01139203,87004.0,87003.0,0.00011839]
[1764556842669,0.01265275,87004.0,87003.0,0.00011839]
[1764556843211,0.04587834,87004.0,87003.0,0.00011839]
[1764556843758,0.04687834,87004.0,87003.0,0.00011839]
[1764556844686,0.04787834,87004.0,87003.0,0.00011839]
[1764556844959,0.04587834,87004.0,87003.0,0.00011839]
[1764556845167,0.04787834,87004.0,87003.0,0.00011839]
[1764556845353,0.04887834,87004.0,87003.0,0.00011839]
[1764556845555,0.04687834,87004.0,87003.0,0.00011839]
[1764556845799,0.04987834,87004.0,87003.0,0.00011839]
[1764556846030,0.43540133,87004.0,87003.0,0.00011839]
[1764556846177,0.43740133,87004.0,87003.0,0.00011839]
[1764556846985,0.2299479,86977.0,86970.0,0.00999999]
[1764556847213,0.03452203,86975.0,86970.0,0.00999999]
[1764556847417,0.26447316,86975.0,86970.0,0.00999999]
[1764556847630,0.26806958,86975.0,86970.0,0.00999999]
[1764556847831,0.25667755,86975.0,86970.0,0.00999999]
[1764556848034,0.26806958,86975.0,86974.0,0.2521652]
[1764556848436,0.27176958,86975.0,86974.0,0.2521652]
[1764556849050,0.59476958,86975.0,86974.0,0.228332]
[1764556849590,0.59576958,86975.0,86974.0,0.228332]
[1764556850008,0.59576958,86975.0,86974.0,0.222342]
[1764556850009,0.65729257,86975.0,86974.0,0.222342]
[1764556850210,0.65929257,86975.0,86974.0,0.21485913]
[1764556850350,0.65829257,86975.0,86974.0,0.21485913]
[1764556850750,0.65929368,86975.0,86974.0,0.21485913]
[1764556851159,0.65829368,86975.0,86974.0,0.21485913]
[1764556851583,0.66029368,86975.0,86974.0,0.21585913]
[1764556851789,0.60717069,86975.0,86974.0,0.23734504]
[1764556852543,0.2771175,86975.0,86974.0,0.21585913]
[1764556852669,0.2845175,86975.0,86974.0,0.21585913]
[1764556857067,0.05456637,86975.0,86974.0,0.21585913]
[1764556857265,0.05086637,86975.0,86974.0,0.21585913]
[1764556857784,0.01634434,86975.0,86974.0,0.21585913]
[1764556857966,0.01274681,86975.0,86974.0,0.24189451]
[1764556858151,0.01074681,86975.0,86974.0,0.24189451]
[1764556858348,0.00774681,86975.0,86974.0,0.24089451]
[1764556858554,0.00974681,86975.0,86974.0,0.24189451]
[1764556858960,0.00034681,86975.0,86974.0,0.24189451]
[1764556859400,0.00134681,86975.0,86974.0,0.24189451]
[1764556859965,0.00134681,86975.0,86974.0,0.24089451]
[1764556860373,0.00134681,86975.0,86974.0,0.63496828]
[1764556860374,0.00234681,86975.0,86974.0,0.63496828]
[1764556860592,0.00234681,86975.0,86974.0,0.69749127]
[1764556861400,0.00134681,86975.0,86974.0,1.08534856]
[1764556861731,0.00034681,86975.0,86974.0,1.08234856]
[1764556861932,0.00134681,86975.0,86974.0,1.09134856]
[1764556862306,0.00134681,86975.0,86974.0,1.08735654]
[1764556862508,0.00134681,86975.0,86974.0,1.07995654]
[1764556862708,0.00134681,86975.0,86974.0,1.08735654]
[1764556862929,0.00134681,86975.0,86974.0,1.01743355]
[1764556863131,0.00134681,86975.0,86974.0,0.22385913]
[1764556863532,0.01273884,86975.0,86974.0,0.22385913]
[1764556863734,0.00134681,86975.0,86974.0,0.22385913]
[1764556863945,0.01273884,86975.0,86974.0,0.22385913]
[1764556864497,0.01173884,86975.0,86974.0,0.21485913]
[1764556864732,0.01173884,86975.0,86974.0,0.2384949]
[1764556864900,0.01273884,86975.0,86974.0,0.2424949]
[1764556865114,0.24268997,86975.0,86974.0,0.21485913]
[1764556865272,0.323,86992.0,86976.0,0.06624]
[1764556865467,0.01149306,87009.0,86975.0,0.09488]
[1764556865468,0.03064375,87004.0,86994.0,0.01149504]
[1764556865694,0.00359614,87003.0,87000.0,0.22988441]
[1764556865901,0.00359614,87003.0,87000.0,0.24137866]
[1764556866059,0.00751828,87004.0,87003.0,0.04974]
[1764556866640,0.00011828,87004.0,87001.0,0.31378903]
[1764556866914,0.00011828,87004.0,87001.0,0.29111401]
[1764556867469,0.01139203,87002.0,87001.0,0.01149412]
[1764556868073,0.01139203,87002.0,87001.0,0.01249412]
[1764556868278,0.01151031,87004.0,87001.0,0.2413752]
[1764556868480,0.001,87002.0,87001.0,0.01149412]
[1764556868711,0.001,87002.0,87001.0,0.10502922]
[1764556869859,0.01139203,87002.0,87001.0,0.10502922]
[1764556869989,0.00011828,87004.0,87001.0,0.10502922]
[1764556870195,0.01139203,87002.0,87001.0,0.34640336]
[1764556870396,0.01139203,87003.0,87001.0,0.34640336]
[1764556870625,0.01139203,87003.0,87002.0,0.06107737]
[1764556870971,0.05099,87002.0,87001.0,0.002]
[1764556871169,0.06238203,87002.0,87001.0,0.002]
[1764556871357,0.06138203,87002.0,87001.0,0.002]
[1764556871501,0.06138203,87002.0,86974.0,0.22635681]
[1764556871502,0.01149729,86977.0,86974.0,0.21485913]
[1764556871709,0.0074,86976.0,86975.0,0.02248591]
[1764556871910,0.56506316,86975.0,86974.0,0.21485913]
[1764556872115,0.62758615,86975.0,86974.0,0.21485913]
[1764556872315,0.6556516,86975.0,86974.0,0.14244913]
[1764556872597,0.02289593,86927.0,86924.0,0.0230086]
[1764556872747,0.02289593,86927.0,86924.0,0.00039482]
[1764556872748,0.0115039,86927.0,86924.0,0.00039482]
[1764556872915,0.00804,86925.0,86924.0,0.00039482]
[1764556873117,0.02747203,86925.0,86924.0,0.00039482]
[1764556873840,0.01943203,86925.0,86924.0,0.00039482]
[1764556874184,0.0074,86925.0,86924.0,0.00239482]
[1764556874338,0.2535634,86925.0,86924.0,0.00039482]
[1764556874530,0.26595543,86925.0,86924.0,0.00039482]
[1764556875935,0.25791543,86925.0,86924.0,0.00039482]
[1764556876248,0.0084,86925.0,86924.0,0.00039482]
[1764556876444,0.001,86925.0,86924.0,0.02789468]
[1764556876699,0.23004139,86941.0,86924.0,0.02789468]
[1764556876839,0.01879203,86930.0,86928.0,0.54752829]
[1764556877032,0.01879203,86930.0,86929.0,0.23007281]
[1764556877295,0.323,86946.0,86940.0,0.00999999]
[1764556877500,0.49982935,86973.0,86930.0,0.23007017]
[1764556877501,0.01150231,86939.0,86936.0,0.53602452]
[1764556877701,0.0074,86938.0,86934.0,0.01150297]
[1764556877898,0.0084,86938.0,86935.0,0.24155977]
[1764556878359,0.0084,86938.0,86935.0,0.01150284]
[1764556878517,0.0074,86938.0,86935.0,0.01150284]
[1764556878734,0.01139203,86936.0,86935.0,0.01150284]
[1764556879081,0.01139203,86936.0,86931.0,0.01150337]
[1764556879082,0.01139203,86931.0,86930.0,0.00999999]
[1764556879226,0.01150324,86932.0,86926.0,0.01150403]
[1764556879425,0.01139203,86928.0,86924.0,0.02789468]
[1764556879668,0.01139203,86925.0,86924.0,0.02789468]
[1764556879873,0.23008122,86926.0,86924.0,0.00039482]
[1764556880107,0.01139203,86925.0,86924.0,0.00039482]
[1764556880634,0.02747203,86925.0,86924.0,0.00039482]
[1764556880897,0.02043203,86925.0,86924.0,0.00239482]
[1764556881641,0.02747203,86925.0,86924.0,0.00239482]
[1764556882715,0.02747203,86925.0,86924.0,0.00039482]
[1764556882847,0.01943203,86925.0,86924.0,0.00039482]
[1764556883047,0.02847203,86925.0,86924.0,0.00039482]
[1764556883580,0.02043203,86925.0,86924.0,0.00039482]
[1764556883970,0.01239203,86925.0,86924.0,0.00039482]
[1764556884224,0.0084,86925.0,86924.0,0.00039482]
[1764556884367,0.0084,86925.0,86924.0,0.02789538]
[1764556884569,0.001,86925.0,86924.0,0.02789538]
[1764556884885,0.0074,86925.0,86924.0,0.02789538]
[1764556885574,0.01879203,86925.0,86924.0,0.02789538]
[1764556886171,0.01979203,86925.0,86924.0,0.25798143]
[1764556886539,0.01879203,86925.0,86924.0,0.25998143]
[1764556886740,0.01879203,86925.0,86924.0,0.00239482]
[1764556886938,0.01979203,86925.0,86924.0,0.00039482]
[1764556887140,0.01979203,86925.0,86924.0,0.00239482]
[1764556887550,0.26595543,86925.0,86924.0,0.00239482]
[1764556887916,0.26495543,86925.0,86924.0,0.00239482]
[1764556888090,0.58795543,86925.0,86924.0,0.00239482]
[1764556888632,0.58795543,86925.0,86924.0,0.00039482]
[1764556889035,0.58795543,86925.0,86924.0,0.00139482]
[1764556889239,0.58895543,86925.0,86924.0,0.00039482]
[1764556889662,0.58255543,86925.0,86924.0,0.00039482]
[1764556889889,0.58995543,86925.0,86924.0,0.00039482]
[1764556890087,0.59095543,86925.0,86924.0,0.00039482]
[1764556890692,0.58191543,86925.0,86924.0,0.00039482]
[1764556890984,0.25891543,86925.0,86924.0,0.00039482]
[1764556891356,0.26795543,86925.0,86924.0,0.00039482]
[1764556891528,0.25991543,86925.0,86924.0,0.00039482]
[1764556891959,0.26795543,86925.0,86924.0,0.00039482]
[1764556892129,0.03587203,86925.0,86924.0,0.00039482]
[1764556892367,0.02783203,86925.0,86924.0,0.00039482]
[1764556892570,0.02883203,86925.0,86924.0,0.00039482]
[1764556892774,0.002,86925.0,86924.0,0.00039482]
[1764556892921,0.0094,86925.0,86924.0,0.02674438]
[1764556893120,0.02079203,86925.0,86924.0,0.00039482]
[1764556893458,0.01979203,86925.0,86924.0,0.00039482]
[1764556893663,0.01879203,86925.0,86924.0,0.00039482]
[1764556893862,0.01979203,86925.0,86924.0,0.00039482]
[1764556894584,0.001,86925.0,86924.0,0.23048087]
[1764556894800,0.0084,86925.0,86924.0,0.31695446]
[1764556895611,0.0074,86925.0,86924.0,0.31695446]
[1764556895824,0.0084,86925.0,86924.0,0.31695446]
[1764556896248,0.01979203,86925.0,86924.0,0.00239482]
[1764556896452,0.01979203,86925.0,86924.0,0.23248087]
[1764556899297,0.0084,86925.0,86924.0,0.23248087]
[1764556899868,0.001,86925.0,86924.0,0.39048087]
[1764556900066,0.001,86925.0,86924.0,0.48353424]
[1764556900668,0.001,86925.0,86924.0,0.32553424]
[1764556900852,0.001,86925.0,86924.0,0.23248087]
[1764556903088,0.01239203,86925.0,86924.0,0.00239482]
[1764556903883,0.001,86925.0,86924.0,0.00239482]
[1764556904085,0.02847203,86925.0,86924.0,0.00239482]
[1764556904282,0.05298698,86925.0,86924.0,0.00239482]
[1764556904524,0.05658568,86925.0,86924.0,0.00239482]
[1764556904855,0.25855543,86925.0,86924.0,0.00239482]
[1764556905049,0.28307038,86925.0,86924.0,0.00239482]